fUST/lending_fUST_20240322
["ID","MTS","AMOUNT","RATE_DAILY","PERIOD"]
[319966470,1711039838960,-325.19839158,0.00024793,2]
[319966472,1711039838970,-175.53572409,0.00024794,2]
[319966474,1711039838979,-240.27036448,0.00024794,2]
[319966476,1711039838989,-180.21817229,0.00024794,2]
[319966478,1711039838999,-390.84705972,0.00024795,2]
[319966480,1711039839013,-170.42111289,0.00024795,2]
[319966482,1711039839022,-222.28201322,0.00024796,2]
[319966484,1711039839031,-179.70674894,0.00024797,2]
[319966486,1711039839040,-165.93181549,0.00024797,2]
[319966488,1711039839050,-154.90705577,0.00024887,2]
[319966490,1711039839058,-3115.58618879,0.00024887,2]
[319966524,1711039843657,-165.02211554,0.00024887,2]
[319966525,1711039843666,-6481.77788446,0.00024887,2]
[319966569,1711039846612,-183.04488785,0.00024887,2]
[319966570,1711039846623,-265.33040506,0.00024887,2]
[319966571,1711039846633,-758.36351707,0.00024887,2]
[319966572,1711039846644,-602.93757777,0.00024887,2]
[319966573,1711039846653,-486.96293892,0.00024887,2]
[319966574,1711039846663,-179.31135066,0.00024887,2]
[319966575,1711039846674,-1618.39836085,0.00024887,2]
[319966576,1711039846683,-5881.31279912,0.00024887,2]
[319966577,1711039846693,-537.21718259,0.00024888,2]
[319966578,1711039846703,-500.0,0.00024888,2]
[319966579,1711039846713,-197.72135917,0.00024888,2]
[319966580,1711039846723,-33676.16211282,0.00024889,9]
[319966581,1711039846733,-294.63072837,0.00024928,2]
[319966582,1711039846744,-2660.3268651,0.00024977,2]
[319966583,1711039846754,-154.92253873,0.00025,2]
[319966584,1711039846767,-292.48319728,0.00025398,2]
[319966585,1711039846777,-399.28956912,0.00025416,2]
[319966586,1711039846787,-1439.51437618,0.00025611,2]
[319966596,1711040049619,20949.33512822,0.00026346,60]
[319966599,1711040089661,617.12366123,0.00021999,2]
[319966600,1711040093281,930.89185044,0.00021999,2]
[319966601,1711040095630,304.78785734,0.00021999,2]
[319966603,1711040105961,1300.31421508,0.00021999,2]
[319966604,1711040119171,-272.53682141,0.00022,2]
[319966605,1711040119196,-251.66183138,0.00022,2]
[319966606,1711040119220,-4748.87020459,0.00022169,2]
[319966607,1711040119246,-876.67409275,0.0002217,2]
[319966609,1711040371382,-1300.31421508,0.00023856,2]
[319966610,1711040371402,-930.89185044,0.00023857,2]
[319966611,1711040371422,-863.54495364,0.00023858,2]
[319966612,1711040371442,-876.67409275,0.00023859,2]
[319966613,1711040371463,-195.328039,0.00023862,2]
[319966614,1711040371484,-24900.0,0.00024012,2]
[319966615,1711040371504,-886.7756217,0.00024246,2]
[319966616,1711040371525,-213.60611992,0.00024282,2]
[319966617,1711040371544,-300.0,0.00024382,2]
[319966618,1711040371633,-322.53706921,0.00024383,2]
[319966619,1711040371654,-273.92827855,0.00024389,2]
[319966620,1711040371676,-396.74435,0.00024439,2]
[319966621,1711040371701,-213.60611991,0.00024786,2]
[319966622,1711040371722,-241.26822124,0.00024887,2]
[319966623,1711040371745,-221.8187462,0.00024887,2]
[319966624,1711040371769,-242.11685121,0.00024887,2]
[319966625,1711040371790,-154.90705577,0.00025,2]
[319966626,1711040371809,-1000.0,0.00025,2]
[319966627,1711040371830,-7199.93841538,0.00025,2]
[319966630,1711040504945,-1300.0,0.00022069,2]
[319966631,1711040667126,500.0,0.00026339,120]
[319966646,1711040761496,188.964037,0.00021879,2]
[319966647,1711040791280,205.08485362,0.00021999,2]
[319966648,1711040793451,559.42003302,0.00021999,2]
[319966649,1711040798527,1300.31421508,0.00021998,2]
[319966663,1711040833082,180.04968881,0.00021999,2]
[319966671,1711040893667,156.25696391,0.00021999,2]
[319966672,1711040905794,312.94649189,0.00021999,2]
[319966673,1711040919521,180.04968881,0.00021999,2]
[319966674,1711040922448,470.59416386,0.00021999,2]
[319966675,1711040960199,559.42003302,0.00021999,2]
[319966676,1711040972614,198.372175,0.00021101,2]
[319966713,1711041031783,-151.0,0.00022,2]
[319966715,1711041031792,-1300.31421508,0.0002206,2]
[319966717,1711041031801,-1618.39836085,0.00022061,2]
[319966719,1711041031811,-126.34816715,0.00022061,2]
[319966722,1711041031823,-1828.69584035,0.00022061,2]
[319966723,1711041031833,-3460.06783428,0.00022062,2]
[319966826,1711041037733,-2077.74076846,0.00022062,2]
[319966827,1711041037743,-300.0,0.00022068,2]
[319966828,1711041037753,-3261.29930997,0.00022069,2]
[319966829,1711041037763,-179.95629491,0.00022167,2]
[319966830,1711041037773,-322.32564277,0.00022167,2]
[319966831,1711041037783,-366.85400776,0.00022168,2]
[319966832,1711041037792,-28703.7382425,0.00022169,2]
[319967034,1711041042774,-5299.92635983,0.00022169,2]
[319967064,1711041046016,-522.9290694,0.00022168,2]
[319967065,1711041046026,-1037.20020885,0.00022168,2]
[319967066,1711041046035,-8229.06033284,0.00022169,2]
[319967070,1711041153894,-2913.67229752,0.00022167,2]
[319967071,1711041153916,-1496.92720961,0.00022168,2]
[319967072,1711041153937,-5509.87834885,0.00022169,2]
[319967073,1711041153959,-300.0,0.00022169,2]
[319967074,1711041153980,-4992.13937456,0.0002217,2]
[319967075,1711041154002,-621.38276946,0.0002217,2]
[319967084,1711041291938,150.90945433,0.00021984,2]
[319967085,1711041291983,150.90945433,0.00021544,4]
[319967086,1711041292032,150.90945433,0.00021113,7]
[319967087,1711041292074,150.90945433,0.00020691,30]
[319967088,1711041292133,150.90945433,0.00020277,120]
[319967089,1711041300632,-2000.0,0.000249,7]
[319967090,1711041302984,-2000.0,0.000249,7]
[319967091,1711041311203,-764.0,0.00022162,2]
[319967092,1711041411799,1440.2306517,0.0002007,2]
[319967095,1711041659165,1199.19,0.00022,2]
[319967096,1711041713057,960.1537678,0.0002007,2]
[319967097,1711041807951,150.89437394,0.00021928,4]
[319967098,1711041808012,150.89437394,0.0002149,7]
[319967099,1711041808082,150.89437394,0.0002106,30]
[319967100,1711041808132,150.89437394,0.00020639,120]
[319967101,1711041857851,297.558263,0.00021798,2]
[319967102,1711041948844,9999.996,0.00022,2]
[319967103,1711042076456,24900.0,0.00021624,2]
[319967132,1711042231930,-170.41187554,0.00022062,2]
[319967134,1711042231940,-863.54495364,0.00022063,2]
[319967136,1711042231949,-815.66428976,0.00022064,2]
[319967138,1711042231959,-597.0,0.00022066,2]
[319967139,1711042231968,-1149.8557584,0.00022068,2]
[319967142,1711042231978,-453.35182513,0.00022069,2]
[319967143,1711042231988,-876.67409275,0.00022224,2]
[319967146,1711042231998,-930.89185044,0.00022225,2]
[319967147,1711042232008,-190.505471,0.00022226,2]
[319967149,1711042232019,-150.89437394,0.00022376,2]
[319967151,1711042232029,-213.60611992,0.000226,2]
[319967153,1711042232039,-213.60611991,0.000226,2]
[319967155,1711042232048,-375.16780423,0.000226,2]
[319967157,1711042232058,-1036.564476,0.00022701,2]
[319967160,1711042232067,-300.0,0.00022799,2]
[319967163,1711042232076,-640.10251187,0.000228,2]
[319967166,1711042232086,-1000.0,0.000245,2]
[319967169,1711042232095,-2000.0,0.00024701,2]
[319967173,1711042232105,-2000.0,0.00024745,2]
[319967175,1711042232118,-2000.0,0.00024789,2]
[319967177,1711042232128,-420.34766193,0.000248,2]
[319967179,1711042232137,-2000.0,0.00024833,2]
[319967182,1711042232146,-150.89437394,0.00024862,2]
[319967185,1711042232157,-250.31565904,0.00024862,2]
[319967188,1711042232167,-2000.0,0.00024876,2]
[319967191,1711042232177,-9822.71157213,0.000249,7]
[319967194,1711042232186,-2000.0,0.0002492,2]
[319967197,1711042232196,-2000.0,0.00024964,2]
[319967201,1711042232206,-8204.32306189,0.00025,2]
[319967204,1711042232216,-720.90397282,0.00025,2]
[319967205,1711042232226,-1008.36861889,0.00025,2]
[319967209,1711042232236,-249.4734379,0.00025,2]
[319967212,1711042232246,-2000.0,0.00025008,2]
[319967215,1711042232255,-2000.0,0.00025052,2]
[319967218,1711042232265,-480.0,0.00025079,2]
[319967220,1711042232274,-376.09354768,0.00025084,2]
[319967223,1711042232285,-2000.0,0.00025096,2]
[319967226,1711042232294,-2000.0,0.0002514,2]
[319967230,1711042232304,-2000.0,0.00025184,2]
[319967233,1711042232314,-2000.0,0.00025228,2]
[319967235,1711042232323,-2000.0,0.00025272,2]
[319967236,1711042232333,-301.78874788,0.0002528,4]
[319967238,1711042232342,-2000.0,0.00025315,2]
[319967240,1711042232351,-171.56491839,0.00025354,2]
[319967242,1711042232360,-2000.0,0.00025359,2]
[319967244,1711042232374,-2000.0,0.00025403,2]
[319967252,1711042232443,-2000.0,0.00025447,2]
[319967254,1711042232453,-2000.0,0.00025491,2]
[319967256,1711042232465,-2000.0,0.00025535,2]
[319967259,1711042232476,-2000.0,0.00025579,2]
[319967260,1711042232485,-207.95753975,0.00025609,30]
[319967262,1711042232494,-304.79366541,0.0002561,2]
[319967264,1711042232505,-2000.0,0.00025623,2]
[319967266,1711042232515,-376.09354766,0.00025637,2]
[319967268,1711042232524,-2000.0,0.00025667,2]
[319967270,1711042232534,-603.57749575,0.00025705,7]
[319967272,1711042232543,-230.2359354,0.00025709,2]
[319967274,1711042232552,-299.02343964,0.00025709,2]
[319967276,1711042232561,-3936.390514,0.0002571,2]
[319967278,1711042232571,-273.92827855,0.00025824,2]
[319967280,1711042232581,-1043.50589469,0.0002587,2]
[319967282,1711042232591,-221.62642672,0.00025894,2]
[319967284,1711042232601,-206.95253206,0.00025894,2]
[319967287,1711042232611,-168.86494154,0.00025894,2]
[319967288,1711042232623,-94.842433,0.00025895,2]
[319967429,1711042237955,-171.5649184,0.00025636,2]
[319967430,1711042237965,-562.7787422,0.00025895,2]
[319967431,1711042237974,-301.81930702,0.00025895,2]
[319967432,1711042237984,-240.18431857,0.00025895,2]
[319967433,1711042237993,-243.91348688,0.00025896,2]
[319967434,1711042238003,-697.50664661,0.00025896,2]
[319967435,1711042238012,-15.71463795,0.00025896,2]
[319967436,1711042238050,-251.75183417,0.00025896,2]
[319967437,1711042238060,-487.60586264,0.00025944,2]
[319967438,1711042238069,-171.2784482,0.00025944,2]
[319967439,1711042238078,-156.60735728,0.00025944,2]
[319967440,1711042238088,-114.32677921,0.00025944,2]
[319967513,1711042246111,-275.42113425,0.00025894,2]
[319967514,1711042246122,-40.85422987,0.00025944,2]
[319967515,1711042246133,-1312.43095433,0.00025945,2]
[319967516,1711042246143,-155.06677393,0.00025945,2]
[319967517,1711042246152,-211.59352232,0.00025945,2]
[319967518,1711042246161,-735.16753385,0.00026,2]
[319967519,1711042246170,-1000.0,0.00026132,2]
[319967520,1711042246182,-166.87710603,0.00026137,4]
[319967521,1711042246193,-1000.0,0.00026146,2]
[319967522,1711042246203,-308.80892218,0.00026173,2]
[319967523,1711042246214,-376.09354766,0.00026191,2]
[319967524,1711042246225,-1000.0,0.00026196,2]
[319967525,1711042246235,-212.43148963,0.00026232,2]
[319967526,1711042246245,-332.12911617,0.00026232,2]
[319967527,1711042246255,-683.361148,0.00026232,2]
[319967528,1711042246266,-1000.0,0.0002624,2]
[319967529,1711042246277,-308.98539759,0.00026254,2]
[319967530,1711042246287,-1000.0,0.00026254,2]
[319967531,1711042246298,-1000.0,0.00026259,2]
[319967532,1711042246308,-1000.0,0.00026275,2]
[319967533,1711042246318,-151.70983736,0.00026275,2]
[319967534,1711042246328,-183.96895006,0.00026305,2]
[319967535,1711042246337,-1000.0,0.0002632,2]
[319967536,1711042246346,-1000.0,0.00026321,2]
[319967537,1711042246437,-1000.0,0.00026323,2]
[319967538,1711042246448,-284.38219936,0.00026328,2]
[319967539,1711042246458,-3141.95697976,0.00026328,2]
[319967540,1711042246471,-154.86062544,0.00026328,2]
[319967541,1711042246484,-568.83552835,0.00026328,2]
[319967543,1711042936870,-154.8915759,0.0002393,2]
[319967544,1711042936894,-154.8915759,0.00023931,2]
[319967545,1711042936914,-876.67409275,0.00023932,2]
[319967546,1711042937028,-1342.14658312,0.00023939,2]
[319967547,1711042937049,-660.06834125,0.00024096,2]
[319967548,1711042937070,-2430.31271689,0.00024492,2]
[319967549,1711042937091,-154.90705577,0.00025,2]
[319967550,1711042937112,-24900.0,0.00025062,2]
[319967551,1711042937137,-367.80420418,0.00025132,2]
[319967552,1711042937158,-297.558263,0.00025232,2]
[319967553,1711042937180,-150.0,0.00025691,2]
[319967554,1711042937200,-171.5649184,0.00026064,2]
[319967555,1711042937220,-1000.0,0.00026074,2]
[319967556,1711042937240,-1000.0,0.00026084,2]
[319967557,1711042937259,-1000.0,0.00026139,2]
[319967558,1711042937279,-1000.0,0.00026183,2]
[319967559,1711042937300,-1000.0,0.00026208,2]
[319967560,1711042937320,-5000.0,0.00026213,2]
[319967561,1711042937340,-1000.0,0.00026238,2]
[319967562,1711042937361,-1000.0,0.00026253,2]
[319967563,1711042937383,-1000.0,0.00026285,2]
[319967564,1711042937404,-218.69732218,0.000263,2]
[319967565,1711042937425,-1300.31421508,0.00026339,2]
[319967566,1711042937447,-241.26822124,0.00026339,2]
[319967567,1711042937469,-322.53707021,0.00026339,2]
[319967568,1711042937491,-1239.34672007,0.00026351,2]
[319967569,1711042937515,-205.08485362,0.00026352,2]
[319967570,1711042937536,-1498.23639857,0.00026352,2]
[319967571,1711042937557,-10000.0,0.00026353,30]
[319967572,1711042937577,-186.0,0.00026353,30]
[319967573,1711042937598,-312.38239696,0.00026398,2]
[319967574,1711042937619,-472.1721313,0.00026398,2]
[319967575,1711042937642,-379.68927946,0.00026398,2]
[319967576,1711042937666,-3645.421764,0.00026398,2]
[319967577,1711042937686,-1609.44195144,0.00026398,2]
[319967578,1711042937708,-880.98040721,0.00026398,2]
[319967579,1711042937729,-221.8187462,0.00026398,2]
[319967580,1711042937751,-169.28969638,0.00026398,2]
[319967581,1711042937772,-151.0,0.00026398,2]
[319967582,1711042937791,-151.0,0.00026398,2]
[319967583,1711042937812,-267.34862136,0.00026398,2]
[319967584,1711042937832,-477.40565974,0.00026399,2]
[319967585,1711042937854,-35448.61725386,0.000264,2]
[319967586,1711042937875,-151.0,0.000264,2]
[319967587,1711042937902,-151.0,0.000264,2]
[319967588,1711042937922,-1000.0,0.000265,2]
[319967589,1711042937942,-218.69732216,0.00026575,2]
[319967590,1711042937963,-247.9562795,0.00026575,2]
[319967591,1711042937983,-218.69732216,0.0002685,2]
[319967592,1711042938003,-218.69732216,0.00027125,2]
[319967593,1711042938023,-178.6222057,0.00027394,2]
[319967594,1711042938045,-156.16578724,0.00027394,2]
[319967595,1711042938065,-232.99241824,0.00027394,2]
[319967596,1711042938086,-309.8295945,0.00027394,2]
[319967597,1711042938108,-469.26804532,0.00027395,2]
[319967598,1711042938132,-1148.94124875,0.00027396,2]
[319967599,1711042938217,-160.0,0.00027396,10]
[319967600,1711042938238,-160.0,0.00027396,10]
[319967601,1711042938260,-396.419232,0.00027397,2]
[319967602,1711042938282,-396.419232,0.00027397,2]
[319967603,1711042938305,-396.419232,0.00027397,2]
[319967604,1711042938325,-396.419232,0.00027397,2]
[319967605,1711042938346,-396.419232,0.00027397,2]
[319967606,1711042938368,-396.419232,0.00027397,2]
[319967607,1711042938392,-396.419232,0.00027397,2]
[319967608,1711042938414,-396.419232,0.00027397,2]
[319967609,1711042938435,-396.419232,0.00027397,2]
[319967610,1711042938458,-396.419232,0.00027397,2]
[319967611,1711042938478,-396.419232,0.00027397,2]
[319967612,1711042938499,-396.419232,0.00027397,2]
[319967613,1711042938519,-396.419232,0.00027397,2]
[319967614,1711042938540,-396.419232,0.00027397,2]
[319967615,1711042938561,-396.419232,0.00027397,2]
[319967616,1711042938582,-396.419232,0.00027397,2]
[319967617,1711042938603,-396.419232,0.00027397,2]
[319967618,1711042938624,-396.419232,0.00027397,2]
[319967619,1711042938648,-151.0,0.00027397,2]
[319967620,1711042938670,-151.0,0.00027397,2]
[319967621,1711042938692,-151.0,0.00027397,2]
[319967622,1711042938714,-151.0,0.00027397,2]
[319967623,1711042938735,-151.0,0.00027397,2]
[319967624,1711042938756,-151.0,0.00027397,2]
[319967625,1711042938779,-151.0,0.00027397,2]
[319967626,1711042938799,-151.0,0.00027397,2]
[319967627,1711042938821,-151.0,0.00027397,2]
[319967628,1711042938844,-151.0,0.00027397,2]
[319967629,1711042938868,-151.872155,0.00027397,2]
[319967630,1711042938894,-151.0,0.00027397,2]
[319967631,1711042938931,-151.084444,0.00027397,2]
[319967632,1711042938955,-151.782006,0.00027397,2]
[319967633,1711042938978,-151.0,0.00027397,2]
[319967634,1711042939002,-151.0,0.00027397,2]
[319967635,1711042939024,-151.0,0.00027397,2]
[319967636,1711042939046,-151.0,0.00027397,2]
[319967637,1711042939069,-153.294127,0.00027397,2]
[319967638,1711042939097,-153.294127,0.00027397,2]
[319967639,1711042939120,-153.294127,0.00027397,2]
[319967640,1711042939146,-153.294127,0.00027397,2]
[319967641,1711042939168,-153.294127,0.00027397,2]
[319967642,1711042939191,-153.294127,0.00027397,2]
[319967643,1711042939217,-153.294127,0.00027397,2]
[319967644,1711042939239,-153.294127,0.00027397,2]
[319967645,1711042939261,-153.294127,0.00027397,2]
[319967646,1711042939283,-153.294127,0.00027397,2]
[319967647,1711042939304,-153.294127,0.00027397,2]
[319967648,1711042939401,-153.294127,0.00027397,2]
[319967649,1711042939432,-153.294127,0.00027397,2]
[319967650,1711042939453,-153.294127,0.00027397,2]
[319967651,1711042939474,-153.294127,0.00027397,2]
[319967652,1711042939494,-153.294127,0.00027397,2]
[319967653,1711042939515,-153.294127,0.00027397,2]
[319967654,1711042939536,-153.294127,0.00027397,2]
[319967655,1711042939557,-153.294127,0.00027397,2]
[319967656,1711042939578,-153.294133,0.00027397,2]
[319967657,1711042939599,-2258.81332631,0.00027397,2]
[319967658,1711042939623,-2258.81332631,0.00027397,2]
[319967659,1711042939645,-2258.81332631,0.00027397,2]
[319967660,1711042939668,-2258.81332631,0.00027397,2]
[319967661,1711042939693,-2258.81332631,0.00027397,2]
[319967662,1711042939715,-2258.81332631,0.00027397,2]
[319967663,1711042939736,-2258.81332631,0.00027397,2]
[319967664,1711042939757,-2258.81332631,0.00027397,2]
[319967665,1711042939778,-2258.81332631,0.00027397,2]
[319967666,1711042939800,-2258.81332631,0.00027397,2]
[319967667,1711042939821,-2258.81332631,0.00027397,2]
[319967668,1711042939843,-2258.81332631,0.00027397,2]
[319967669,1711042939863,-2258.81332631,0.00027397,2]
[319967670,1711042939887,-2258.81332631,0.00027397,2]
[319967671,1711042939909,-2258.81332631,0.00027397,2]
[319967672,1711042939930,-2258.81332631,0.00027397,2]
[319967673,1711042939950,-2258.81332631,0.00027397,2]
[319967674,1711042939971,-2258.81332631,0.00027397,2]
[319967675,1711042939994,-2258.81332631,0.00027397,2]
[319967676,1711042940016,-2258.81332631,0.00027397,2]
[319967677,1711042940038,-2258.81332631,0.00027397,2]
[319967678,1711042940059,-2258.81332631,0.00027397,2]
[319967679,1711042940080,-2258.81332631,0.00027397,2]
[319967680,1711042940103,-2258.81332631,0.00027397,2]
[319967681,1711042940124,-2258.81332631,0.00027397,2]
[319967682,1711042940149,-2258.81332631,0.00027397,2]
[319967683,1711042940170,-2258.81332631,0.00027397,2]
[319967684,1711042940192,-2258.81332631,0.00027397,2]
[319967685,1711042940215,-2258.81332631,0.00027397,2]
[319967686,1711042940236,-2258.81332631,0.00027397,2]
[319967687,1711042940259,-2258.81332631,0.00027397,2]
[319967688,1711042940280,-2258.81332631,0.00027397,2]
[319967689,1711042940302,-2258.81332631,0.00027397,2]
[319967690,1711042940323,-2258.81332631,0.00027397,2]
[319967691,1711042940344,-2258.81332631,0.00027397,2]
[319967692,1711042940367,-2258.81332631,0.00027397,2]
[319967693,1711042940389,-2258.81332631,0.00027397,2]
[319967694,1711042940410,-2258.81332631,0.00027397,2]
[319967695,1711042940434,-2258.81332631,0.00027397,2]
[319967696,1711042940455,-2258.81332631,0.00027397,2]
[319967697,1711042940538,-2258.81332631,0.00027397,2]
[319967698,1711042940560,-2258.81332631,0.00027397,2]
[319967699,1711042940583,-2258.81332631,0.00027397,2]
[319967700,1711042940606,-2258.81332631,0.00027397,2]
[319967701,1711042940628,-2258.81332631,0.00027397,2]
[319967702,1711042940652,-2258.81332631,0.00027397,2]
[319967703,1711042940677,-2258.81332631,0.00027397,2]
[319967704,1711042940698,-2258.81332631,0.00027397,2]
[319967705,1711042940721,-2258.81332631,0.00027397,2]
[319967706,1711042940744,-2258.81332631,0.00027397,2]
[319967707,1711042940767,-2258.81332631,0.00027397,2]
[319967708,1711042940789,-2258.81332631,0.00027397,2]
[319967709,1711042940812,-2258.81332631,0.00027397,2]
[319967710,1711042940834,-2258.81332631,0.00027397,2]
[319967711,1711042940856,-2258.81332631,0.00027397,2]
[319967712,1711042940878,-2258.81332631,0.00027397,2]
[319967713,1711042940902,-2258.81332631,0.00027397,2]
[319967714,1711042940923,-2258.81332631,0.00027397,2]
[319967715,1711042940944,-2258.81332631,0.00027397,2]
[319967716,1711042940966,-2258.81332631,0.00027397,2]
[319967717,1711042940987,-2258.81332631,0.00027397,2]
[319967718,1711042941008,-2258.81332631,0.00027397,2]
[319967719,1711042941030,-2258.81332631,0.00027397,2]
[319967720,1711042941051,-2258.81332631,0.00027397,2]
[319967721,1711042941073,-2258.81332631,0.00027397,2]
[319967722,1711042941094,-2258.81332631,0.00027397,2]
[319967723,1711042941116,-2258.81332631,0.00027397,2]
[319967724,1711042941138,-2258.81332631,0.00027397,2]
[319967725,1711042941159,-2258.81332631,0.00027397,2]
[319967726,1711042941181,-2258.81332631,0.00027397,2]
[319967727,1711042941201,-151.618039,0.00027397,2]
[319967728,1711042941223,-2258.81332631,0.00027397,2]
[319967729,1711042941244,-2954.97903729,0.00027397,2]
[319967730,1711042941266,-2954.97903729,0.00027397,2]
[319967731,1711042941287,-2954.97903729,0.00027397,2]
[319967732,1711042941308,-2954.97903729,0.00027397,2]
[319967733,1711042941330,-2954.97903729,0.00027397,2]
[319967734,1711042941351,-2954.97903729,0.00027397,2]
[319967735,1711042941374,-2954.97903729,0.00027397,2]
[319967736,1711042941397,-2954.97903729,0.00027397,2]
[319967737,1711042941420,-2954.97903729,0.00027397,2]
[319967738,1711042941442,-2954.97903729,0.00027397,2]
[319967739,1711042941463,-2954.97903729,0.00027397,2]
[319967740,1711042941485,-2954.97903729,0.00027397,2]
[319967741,1711042941506,-2954.97903729,0.00027397,2]
[319967742,1711042941528,-2954.97903729,0.00027397,2]
[319967743,1711042941549,-2954.97903729,0.00027397,2]
[319967744,1711042941635,-2954.97903729,0.00027397,2]
[319967745,1711042941657,-2954.97903729,0.00027397,2]
[319967746,1711042941678,-179.994095,0.00027397,2]
[319967747,1711042941702,-179.994095,0.00027397,2]
[319967748,1711042941724,-179.994095,0.00027397,2]
[319967749,1711042941747,-179.994095,0.00027397,2]
[319967750,1711042941769,-179.994095,0.00027397,2]
[319967751,1711042941791,-179.994095,0.00027397,2]
[319967752,1711042941811,-179.994095,0.00027397,2]
[319967753,1711042941833,-179.994095,0.00027397,2]
[319967754,1711042941853,-179.994095,0.00027397,2]
[319967755,1711042941876,-2954.97903727,0.00027397,2]
[319967756,1711042941899,-179.994095,0.00027397,2]
[319967757,1711042941921,-179.994095,0.00027397,2]
[319967758,1711042941942,-179.994095,0.00027397,2]
[319967759,1711042941963,-179.994095,0.00027397,2]
[319967760,1711042941983,-179.994095,0.00027397,2]
[319967761,1711042942004,-179.994095,0.00027397,2]
[319967762,1711042942024,-179.994095,0.00027397,2]
[319967763,1711042942045,-179.994095,0.00027397,2]
[319967764,1711042942065,-179.994095,0.00027397,2]
[319967765,1711042942086,-179.994095,0.00027397,2]
[319967766,1711042942108,-179.994087,0.00027397,2]
[319967767,1711042942133,-551.179589,0.00027397,2]
[319967768,1711042942158,-551.179589,0.00027397,2]
[319967769,1711042942182,-551.179589,0.00027397,2]
[319967770,1711042942204,-551.179589,0.00027397,2]
[319967771,1711042942226,-551.179589,0.00027397,2]
[319967772,1711042942248,-551.179589,0.00027397,2]
[319967773,1711042942268,-551.179589,0.00027397,2]
[319967774,1711042942288,-551.179589,0.00027397,2]
[319967775,1711042942308,-551.179589,0.00027397,2]
[319967776,1711042942330,-551.179589,0.00027397,2]
[319967777,1711042942351,-551.179589,0.00027397,2]
[319967778,1711042942372,-551.179589,0.00027397,2]
[319967779,1711042942398,-551.179589,0.00027397,2]
[319967780,1711042942419,-551.179589,0.00027397,2]
[319967781,1711042942439,-551.179589,0.00027397,2]
[319967782,1711042942460,-551.179589,0.00027397,2]
[319967783,1711042942480,-551.179589,0.00027397,2]
[319967784,1711042942500,-551.179589,0.00027397,2]
[319967785,1711042942520,-551.179589,0.00027397,2]
[319967786,1711042942541,-551.179583,0.00027397,2]
[319967787,1711042942562,-151.0,0.00027397,2]
[319967788,1711042942582,-151.0,0.00027397,2]
[319967789,1711042942660,-151.0,0.00027397,2]
[319967790,1711042942683,-151.0,0.00027397,2]
[319967791,1711042942705,-151.0,0.00027397,2]
[319967792,1711042942726,-151.0,0.00027397,2]
[319967793,1711042942746,-151.0,0.00027397,2]
[319967794,1711042942767,-151.0,0.00027397,2]
[319967795,1711042942788,-151.0,0.00027397,2]
[319967796,1711042942808,-151.0,0.00027397,2]
[319967797,1711042942831,-151.0,0.00027397,2]
[319967798,1711042942853,-151.0,0.00027397,2]
[319967799,1711042942876,-151.0,0.00027397,2]
[319967800,1711042942900,-151.0,0.00027397,2]
[319967801,1711042942922,-151.0,0.00027397,2]
[319967802,1711042942943,-151.0,0.00027397,2]
[319967803,1711042942964,-151.0,0.00027397,2]
[319967804,1711042942985,-176.241644,0.00027397,2]
[319967805,1711042943008,-151.0,0.00027397,2]
[319967806,1711042943031,-151.0,0.00027397,2]
[319967807,1711042943052,-208.311288,0.00027397,2]
[319967808,1711042943074,-151.0,0.00027397,2]
[319967809,1711042943095,-151.0,0.00027397,2]
[319967810,1711042943116,-151.0,0.00027397,2]
[319967811,1711042943140,-151.0,0.00027397,2]
[319967812,1711042943161,-151.0,0.00027397,2]
[319967813,1711042943182,-151.0,0.00027397,2]
[319967814,1711042943203,-151.0,0.00027397,2]
[319967815,1711042943223,-151.0,0.00027397,2]
[319967816,1711042943245,-151.0,0.00027397,2]
[319967817,1711042943267,-151.0,0.00027397,2]
[319967818,1711042943288,-151.0,0.00027397,2]
[319967819,1711042943309,-151.0,0.00027397,2]
[319967820,1711042943331,-151.0,0.00027397,2]
[319967821,1711042943351,-151.0,0.00027397,2]
[319967822,1711042943373,-259.924795,0.00027397,2]
[319967823,1711042943404,-151.0,0.00027397,2]